fUSD/lending_fUSD_20250113
["ID","MTS","AMOUNT","RATE_DAILY","PERIOD"]
[348835585,1736797848737,-500.0,0.00010273,2]
[348835586,1736797848747,-500.0,0.00010273,2]
[348835587,1736797848756,-500.0,0.00010273,2]
[348835588,1736797848765,-500.0,0.00010273,2]
[348835589,1736797848774,-500.0,0.00010273,2]
[348835590,1736797848785,-500.0,0.00010273,2]
[348835591,1736797848795,-500.0,0.00010273,2]
[348835592,1736797848804,-500.0,0.00010273,2]
[348835593,1736797848813,-500.0,0.00010273,2]
[348835594,1736797848822,-500.0,0.00010273,2]
[348835595,1736797848833,-500.0,0.00010273,2]
[348835596,1736797848841,-500.0,0.00010273,2]
[348835597,1736797848850,-500.0,0.00010273,2]
[348835598,1736797848859,-500.0,0.00010273,2]
[348835599,1736797848869,-500.0,0.00010273,2]
[348835600,1736797848878,-500.0,0.00010273,2]
[348835601,1736797848887,-500.0,0.00010273,2]
[348835602,1736797848897,-500.0,0.00010273,2]
[348835603,1736797848905,-500.0,0.00010273,2]
[348835604,1736797848914,-500.0,0.00010273,2]
[348835605,1736797848923,-500.0,0.00010273,2]
[348835606,1736797848933,-500.0,0.00010273,2]
[348835607,1736797848944,-500.0,0.00010273,2]
[348835608,1736797848953,-500.0,0.00010273,2]
[348835609,1736797848962,-500.0,0.00010273,2]
[348835610,1736797848971,-500.0,0.00010273,2]
[348835611,1736797848981,-500.0,0.00010273,2]
[348835612,1736797848991,-500.0,0.00010273,2]
[348835613,1736797849000,-500.0,0.00010273,2]
[348835614,1736797849009,-500.0,0.00010273,2]
[348835615,1736797849019,-500.0,0.00010273,2]
[348835616,1736797849029,-500.0,0.00010273,2]
[348835617,1736797849039,-500.0,0.00010273,2]
[348835618,1736797849049,-500.0,0.00010273,2]
[348835619,1736797849058,-500.0,0.00010273,2]
[348835620,1736797849067,-500.0,0.00010273,2]
[348835621,1736797849076,-500.0,0.00010273,2]
[348835622,1736797849086,-500.0,0.00010273,2]
[348835623,1736797849095,-500.0,0.00010273,2]
[348835624,1736797849105,-500.0,0.00010273,2]
[348835625,1736797849113,-500.0,0.00010273,2]
[348835626,1736797849122,-500.0,0.00010273,2]
[348835627,1736797849132,-500.0,0.00010273,2]
[348835628,1736797849142,-261.8405754,0.00010273,2]
[348835629,1736797849151,-500.0,0.00010273,2]
[348835630,1736797849160,-500.0,0.00010273,2]
[348835631,1736797849169,-500.0,0.00010273,2]
[348835632,1736797849178,-500.0,0.00010273,2]
[348835633,1736797849187,-500.0,0.00010273,2]
[348835634,1736797849196,-500.0,0.00010273,2]
[348835635,1736797849206,-307.04577042,0.00010273,2]
[348835636,1736797849215,-500.0,0.00010273,2]
[348835637,1736797849225,-500.0,0.00010273,2]
[348835638,1736797849234,-500.0,0.00010273,2]
[348835639,1736797849243,-500.0,0.00010273,2]
[348835640,1736797849252,-500.0,0.00010273,2]
[348835641,1736797849261,-500.0,0.00010273,2]
[348835642,1736797849270,-500.0,0.00010273,2]
[348835643,1736797849279,-500.0,0.00010273,2]
[348835644,1736797849288,-500.0,0.00010273,2]
[348835645,1736797849298,-500.0,0.00010273,2]
[348835646,1736797849307,-500.0,0.00010273,2]
[348835647,1736797849316,-222.40626884,0.00010273,2]
[348835648,1736797849325,-401.93124427,0.00010273,2]
[348835649,1736797849336,-697.15,0.00010273,2]
[348835650,1736797849345,-1807.03,0.00010273,2]
[348835651,1736797849355,-587.37,0.00010273,2]
[348835652,1736797849364,-500.0,0.00010273,2]
[348835653,1736797849374,-500.0,0.00010273,2]
[348835654,1736797849383,-500.0,0.00010273,2]
[348835655,1736797849393,-500.0,0.00010273,2]
[348835656,1736797849402,-722.12,0.00010273,2]
[348835657,1736797849411,-500.0,0.00010273,2]
[348835658,1736797849420,-500.0,0.00010273,2]
[348835659,1736797849430,-500.0,0.00010273,2]
[348835660,1736797849439,-500.0,0.00010273,2]
[348835661,1736797849448,-500.0,0.00010273,2]
[348835662,1736797849457,-500.0,0.00010273,2]
[348835663,1736797849466,-500.0,0.00010273,2]
[348835664,1736797849476,-2146.6,0.00010273,2]
[348835665,1736797849485,-500.0,0.00010273,2]
[348835666,1736797849494,-500.0,0.00010273,2]
[348835667,1736797849503,-500.0,0.00010273,2]
[348835668,1736797849512,-500.0,0.00010273,2]
[348835669,1736797849521,-2140.53,0.00010273,2]
[348835670,1736797849531,-500.0,0.00010273,2]
[348835671,1736797849540,-500.0,0.00010273,2]
[348835672,1736797849550,-575.42325223,0.00010273,2]
[348835673,1736797849559,-500.0,0.00010273,2]
[348835674,1736797849568,-500.0,0.00010273,2]
[348835675,1736797849578,-500.0,0.00010273,2]
[348835676,1736797849589,-500.0,0.00010273,2]
[348835677,1736797849597,-349.21,0.00010273,2]
[348835678,1736797849607,-500.0,0.00010273,2]
[348835679,1736797849616,-500.0,0.00010273,2]
[348835680,1736797849625,-500.0,0.00010273,2]
[348835681,1736797849634,-500.0,0.00010273,2]
[348835682,1736797849643,-500.0,0.00010273,2]
[348835683,1736797849652,-1373.13,0.00010273,2]
[348835684,1736797849661,-500.0,0.00010273,2]
[348835685,1736797849671,-500.0,0.00010273,2]
[348835686,1736797849679,-526.09288813,0.00010273,2]
[348835687,1736797849688,-1096.17,0.00010273,2]
[348835688,1736797849697,-4109.2,0.00010273,2]
[348835689,1736797849707,-500.0,0.00010273,2]
[348835690,1736797849716,-1263.61,0.00010273,2]
[348835691,1736797849725,-429.81243014,0.00010384,2]
[348835692,1736797849734,-500.0,0.0001041,2]
[348835693,1736797849743,-396.50425808,0.00010437,2]
[348835694,1736797849752,-1148.37,0.00010438,2]
[348835695,1736797849761,-1242.55,0.00010438,2]
[348835696,1736797849771,-1250.04,0.00010438,2]
[348835697,1736797849780,-2725.21,0.00010438,2]
[348835698,1736797849790,-1203.39,0.00010438,2]
[348835699,1736797849799,-1835.3,0.00010438,2]
[348835700,1736797849808,-922.7,0.00010438,2]
[348835701,1736797849817,-992.85,0.00010438,2]
[348835702,1736797849827,-520.78,0.00010438,2]
[348835703,1736797849837,-1171.85,0.00010438,2]
[348835704,1736797849847,-500.0,0.00010438,2]
[348835705,1736797849855,-669.0,0.00010438,2]
[348835706,1736797849865,-500.0,0.00010438,2]
[348835707,1736797849874,-500.0,0.00010438,2]
[348835708,1736797849883,-616.12,0.00010438,2]
[348835709,1736797849892,-521.07,0.00010438,2]
[348835710,1736797849902,-1444.72,0.00010438,2]
[348835711,1736797849911,-1167.67,0.00010438,2]
[348835712,1736797849920,-1746.13,0.00010438,2]
[348835713,1736797849929,-1063.04,0.00010438,2]
[348835714,1736797849939,-1521.62,0.00010438,2]
[348835715,1736797849951,-3387.46,0.00010438,2]
[348835716,1736797849961,-8818.98,0.00010438,2]
[348835717,1736797849970,-1016.29,0.00010438,2]
[348835718,1736797849979,-500.0,0.00010438,2]
[348835719,1736797849988,-1689.12,0.00010438,2]
[348835720,1736797849998,-500.0,0.00010438,2]
[348835721,1736797850007,-500.0,0.00010438,2]
[348835722,1736797850016,-68825.03762417,0.00010439,2]
[348835723,1736797850266,-692.97799675,0.00010439,2]
[348835726,1736798103196,57272.0,0.00023,120]
[348835730,1736798659519,1004.33,8.219e-05,2]
[348835741,1736799032038,-2944.11,8.99e-05,2]
[348835742,1736799032048,-300.0,9.383e-05,2]
[348835743,1736799032059,-224.6,9.383e-05,2]
[348835744,1736799032068,-163.65,9.384e-05,2]
[348835745,1736799032078,-426.94,9.384e-05,2]
[348835746,1736799032088,-250.0,9.384e-05,2]
[348835747,1736799032097,-500.0,9.384e-05,2]
[348835748,1736799032112,-500.0,9.384e-05,2]
[348835749,1736799032122,-228.19080391,9.384e-05,2]
[348835750,1736799032132,-1000.0,9.384e-05,2]
[348835751,1736799032143,-250.0,9.384e-05,2]
[348835752,1736799032157,-316.43654749,9.384e-05,2]
[348835753,1736799032167,-2578.3326486,9.408e-05,2]
[348835754,1736799032179,-361.67562588,9.408e-05,2]
[348835755,1736799032190,-383.46181013,9.408e-05,2]
[348835756,1736799032250,-856.8,9.408e-05,2]
[348835757,1736799032301,-3932.72991539,9.408e-05,2]
[348835758,1736799032310,-316.43654747,9.682e-05,2]
[348835759,1736799032324,-1656.3946,9.873e-05,2]
[348835760,1736799032333,-1431.40801655,9.873e-05,2]
[348835761,1736799032411,-1170.920517,9.873e-05,2]
[348835763,1736799038021,-447.02649311,9.873e-05,2]
[348835764,1736799038094,-771.15997334,9.873e-05,2]
[348835765,1736799038104,-406.5707,9.873e-05,2]
[348835766,1736799038114,-1285.5102,9.873e-05,2]
[348835767,1736799038123,-1000.0,9.881e-05,2]
[348835768,1736799038133,-601.3509,9.891e-05,2]
[348835769,1736799038143,-1000.0,9.891e-05,2]
[348835770,1736799038152,-5000.0,9.893e-05,2]
[348835771,1736799038166,-300.0,9.9e-05,3]
[348835772,1736799038176,-500.0,9.973e-05,2]
[348835773,1736799038185,-2375.5012786,9.973e-05,2]
[348835774,1736799038195,-200.0,9.975e-05,2]
[348835775,1736799038204,-18301.49607968,9.975e-05,2]
[348835776,1736799038214,-316.43654747,9.979e-05,2]
[348835777,1736799038224,-18301.49607968,9.979e-05,2]
[348835778,1736799038234,-18301.49607968,9.979e-05,2]
[348835779,1736799038244,-1061.29224117,9.981e-05,3]
[348835780,1736799038255,-26047.92718249,9.982e-05,2]
[348835781,1736799038265,-1061.29224117,9.985e-05,3]
[348835782,1736799038275,-18301.49607968,9.986e-05,2]
[348835783,1736799038285,-2375.5012786,9.99e-05,2]
[348835784,1736799038295,-26047.92718249,9.991e-05,2]
[348835785,1736799038306,-2375.5012786,9.991e-05,2]
[348835786,1736799038317,-200.0,9.991e-05,2]
[348835787,1736799038328,-26047.92718249,9.991e-05,2]
[348835788,1736799038338,-169.36264963,9.991e-05,2]
[348835789,1736799038347,-500.0,9.991e-05,2]
[348835790,1736799038357,-18301.49607968,9.991e-05,2]
[348835791,1736799038369,-1764.03,9.992e-05,2]
[348835792,1736799038379,-1059.95,9.992e-05,2]
[348835793,1736799038387,-2032.38,9.992e-05,2]
[348835794,1736799038397,-5535.72,9.992e-05,2]
[348835795,1736799038406,-500.0,9.992e-05,2]
[348835796,1736799038418,-500.0,9.992e-05,2]
[348835797,1736799038428,-868.14,9.992e-05,2]
[348835798,1736799038437,-500.0,9.992e-05,2]
[348835799,1736799038447,-2241.5,9.992e-05,2]
[348835800,1736799038456,-500.0,9.992e-05,2]
[348835801,1736799038465,-1922.6,9.992e-05,2]
[348835802,1736799038474,-2868.32,9.992e-05,2]
[348835803,1736799038484,-967.25,9.992e-05,2]
[348835804,1736799038493,-500.0,9.992e-05,2]
[348835805,1736799038503,-500.0,9.992e-05,2]
[348835806,1736799038512,-992.55,9.992e-05,2]
[348835807,1736799038522,-2982.86,9.992e-05,2]
[348835808,1736799038532,-2324.4,9.992e-05,2]
[348835809,1736799038541,-965.9,9.992e-05,2]
[348835810,1736799038550,-500.0,9.992e-05,2]
[348835811,1736799038559,-500.0,9.992e-05,2]
[348835812,1736799038568,-500.0,9.992e-05,2]
[348835813,1736799038578,-500.0,9.992e-05,2]
[348835814,1736799038587,-1376.32,9.992e-05,2]
[348835815,1736799038596,-500.0,9.992e-05,2]
[348835816,1736799038605,-500.0,9.992e-05,2]
[348835817,1736799038615,-1244.39,9.992e-05,2]
[348835818,1736799038624,-500.0,9.992e-05,2]
[348835819,1736799038634,-500.0,9.992e-05,2]
[348835820,1736799038643,-200.0,9.992e-05,2]
[348835821,1736799038653,-753.8,9.993e-05,2]
[348835822,1736799038663,-719.93,9.993e-05,2]
[348835823,1736799038672,-500.0,9.993e-05,2]
[348835824,1736799038682,-1538.55,9.993e-05,2]
[348835825,1736799038691,-500.0,9.993e-05,2]
[348835826,1736799038700,-654.32,9.993e-05,2]
[348835827,1736799038709,-627.73,9.993e-05,2]
[348835828,1736799038719,-500.0,9.993e-05,2]
[348835829,1736799038729,-500.0,9.993e-05,2]
[348835830,1736799038739,-1229.36,9.993e-05,2]
[348835831,1736799038750,-500.0,9.993e-05,2]
[348835832,1736799038759,-500.0,9.993e-05,2]
[348835833,1736799038769,-471.49478764,9.993e-05,2]
[348835834,1736799038778,-1964.61,9.993e-05,2]
[348835835,1736799038787,-500.0,9.993e-05,2]
[348835836,1736799038797,-500.0,9.993e-05,2]
[348835837,1736799038807,-500.0,9.993e-05,2]
[348835838,1736799038815,-500.0,9.993e-05,2]
[348835839,1736799038824,-500.0,9.993e-05,2]
[348835840,1736799038834,-500.0,9.993e-05,2]
[348835841,1736799038843,-500.0,9.993e-05,2]
[348835842,1736799038852,-500.0,9.993e-05,2]
[348835843,1736799038862,-500.0,9.993e-05,2]
[348835844,1736799038871,-500.0,9.993e-05,2]
[348835845,1736799038881,-472.94677048,9.993e-05,2]
[348835846,1736799038890,-500.0,9.993e-05,2]
[348835847,1736799038900,-500.0,9.993e-05,2]
[348835848,1736799038911,-500.0,9.993e-05,2]
[348835849,1736799038920,-500.0,9.993e-05,2]
[348835850,1736799038929,-500.0,9.993e-05,2]
[348835851,1736799038939,-500.0,9.993e-05,2]
[348835852,1736799038948,-500.0,9.993e-05,2]
[348835853,1736799038957,-500.0,9.993e-05,2]
[348835854,1736799038967,-500.0,9.993e-05,2]
[348835855,1736799038976,-500.0,9.993e-05,2]
[348835856,1736799038985,-500.0,9.993e-05,2]
[348835857,1736799038995,-500.0,9.993e-05,2]
[348835858,1736799039004,-500.0,9.993e-05,2]
[348835859,1736799039014,-500.0,9.993e-05,2]
[348835860,1736799039023,-500.0,9.993e-05,2]
[348835861,1736799039032,-500.0,9.993e-05,2]
[348835862,1736799039042,-1293.04,9.993e-05,2]
[348835863,1736799039051,-500.0,9.993e-05,2]
[348835864,1736799039062,-500.0,9.993e-05,2]
[348835865,1736799039071,-500.0,9.993e-05,2]
[348835866,1736799039081,-500.0,9.993e-05,2]
[348835867,1736799039090,-500.0,9.993e-05,2]
[348835868,1736799039099,-500.0,9.993e-05,2]
[348835869,1736799039109,-500.0,9.993e-05,2]
[348835870,1736799039119,-500.0,9.993e-05,2]
[348835871,1736799039128,-500.0,9.993e-05,2]
[348835872,1736799039138,-500.0,9.993e-05,2]
[348835873,1736799039149,-500.0,9.993e-05,2]
[348835874,1736799039159,-500.0,9.993e-05,2]
[348835875,1736799039168,-500.0,9.993e-05,2]
[348835876,1736799039178,-500.0,9.993e-05,2]
[348835877,1736799039188,-500.0,9.993e-05,2]
[348835878,1736799039197,-500.0,9.993e-05,2]
[348835879,1736799039207,-500.0,9.993e-05,2]
[348835880,1736799039217,-500.0,9.993e-05,2]
[348835881,1736799039226,-500.0,9.993e-05,2]
[348835882,1736799039236,-500.0,9.993e-05,2]
[348835883,1736799039245,-500.0,9.993e-05,2]
[348835884,1736799039255,-500.0,9.993e-05,2]
[348835885,1736799039266,-500.0,9.993e-05,2]
[348835886,1736799039276,-503.63,9.993e-05,2]
[348835887,1736799039285,-500.0,9.993e-05,2]
[348835888,1736799039294,-500.0,9.993e-05,2]
[348835889,1736799039304,-834.75,9.993e-05,2]
[348835890,1736799039313,-500.0,9.993e-05,2]
[348835891,1736799039323,-500.0,9.993e-05,2]
[348835892,1736799039334,-500.0,9.993e-05,2]
[348835893,1736799039344,-500.0,9.993e-05,2]
[348835894,1736799039353,-500.0,9.993e-05,2]
[348835895,1736799039364,-500.0,9.993e-05,2]
[348835896,1736799039373,-500.0,9.993e-05,2]
[348835897,1736799039382,-421.60842671,9.993e-05,2]
[348835898,1736799039398,-78.39157329,9.993e-05,2]
[348835899,1736799039408,-305.75782821,9.993e-05,2]
[348835900,1736799039421,-194.24217179,9.993e-05,2]
[348835901,1736799039430,-500.0,9.993e-05,2]
[348835902,1736799039439,-500.0,9.993e-05,2]
[348835903,1736799039449,-500.0,9.993e-05,2]
[348835904,1736799039459,-500.0,9.993e-05,2]
[348835905,1736799039469,-500.0,9.993e-05,2]
[348835906,1736799039478,-334.90193299,9.993e-05,2]
[348835907,1736799039494,-165.09806701,9.993e-05,2]
[348835908,1736799039504,-500.0,9.993e-05,2]
[348835909,1736799039514,-500.0,9.993e-05,2]
[348835910,1736799039523,-500.0,9.993e-05,2]
[348835911,1736799039532,-500.0,9.993e-05,2]
[348835912,1736799039541,-500.0,9.993e-05,2]
[348835913,1736799039550,-471.304876,9.993e-05,2]
[348835914,1736799039559,-500.0,9.993e-05,2]
[348835915,1736799039569,-500.0,9.993e-05,2]
[348835916,1736799039579,-500.0,9.993e-05,2]
[348835917,1736799039589,-500.0,9.993e-05,2]
[348835918,1736799039599,-500.0,9.993e-05,2]
[348835919,1736799039608,-500.0,9.993e-05,2]
[348835920,1736799039618,-500.0,9.993e-05,2]
[348835921,1736799039627,-500.0,9.993e-05,2]
[348835922,1736799039637,-500.0,9.993e-05,2]
[348835923,1736799039646,-500.0,9.993e-05,2]
[348835924,1736799039656,-500.0,9.993e-05,2]
[348835925,1736799039667,-500.0,9.993e-05,2]
[348835926,1736799039676,-500.0,9.993e-05,2]
[348835927,1736799039686,-500.0,9.993e-05,2]
[348835928,1736799039695,-500.0,9.993e-05,2]
[348835929,1736799039705,-500.0,9.993e-05,2]
[348835930,1736799039715,-500.0,9.993e-05,2]
[348835931,1736799039724,-500.0,9.993e-05,2]
[348835940,1736799039960,-500.0,9.993e-05,2]
[348835943,1736799039974,-500.0,9.993e-05,2]
[348835945,1736799039985,-500.0,9.993e-05,2]
[348835946,1736799039994,-500.0,9.993e-05,2]
[348835947,1736799040003,-512.558208,9.993e-05,2]
[348835948,1736799040012,-500.0,9.993e-05,2]
[348835949,1736799040022,-500.0,9.993e-05,2]
[348835950,1736799040031,-500.0,9.993e-05,2]
[348835951,1736799040041,-500.0,9.993e-05,2]
[348835952,1736799040051,-500.0,9.993e-05,2]
[348835953,1736799040060,-500.0,9.993e-05,2]
[348835954,1736799040069,-160.701336,9.993e-05,2]
[348835955,1736799040079,-2532.09,9.993e-05,2]
[348835956,1736799040088,-500.0,9.993e-05,2]
[348835957,1736799040097,-500.0,9.993e-05,2]
[348835958,1736799040107,-500.0,9.993e-05,2]
[348835959,1736799040116,-500.0,9.993e-05,2]
[348835960,1736799040127,-500.0,9.993e-05,2]
[348835961,1736799040137,-156.595603,9.993e-05,2]
[348835962,1736799040147,-500.0,9.993e-05,2]
[348835963,1736799040157,-500.0,9.993e-05,2]
[348835964,1736799040167,-500.0,9.993e-05,2]
[348835965,1736799040177,-500.0,9.993e-05,2]
[348835966,1736799040188,-500.0,9.993e-05,2]
[348835967,1736799040199,-500.0,9.993e-05,2]
[348835968,1736799040208,-500.0,9.993e-05,2]
[348835969,1736799040219,-500.0,9.993e-05,2]
[348835970,1736799040229,-500.0,9.993e-05,2]
[348835971,1736799040238,-500.0,9.993e-05,2]
[348835972,1736799040248,-500.0,9.993e-05,2]
[348835973,1736799040258,-500.0,9.993e-05,2]
[348835974,1736799040268,-500.0,9.993e-05,2]
[348835975,1736799040278,-500.0,9.993e-05,2]
[348835976,1736799040287,-500.0,9.993e-05,2]
[348835977,1736799040296,-500.0,9.993e-05,2]
[348835978,1736799040306,-711.91,9.993e-05,2]
[348835979,1736799040318,-500.0,9.993e-05,2]
[348835980,1736799040329,-500.0,9.993e-05,2]
[348835981,1736799040339,-500.0,9.993e-05,2]
[348835982,1736799040349,-500.0,9.993e-05,2]
[348835983,1736799040359,-500.0,9.993e-05,2]
[348835984,1736799040368,-500.0,9.993e-05,2]
[348835985,1736799040377,-500.0,9.993e-05,2]
[348835986,1736799040386,-500.0,9.993e-05,2]
[348835987,1736799040400,-501.40913893,9.993e-05,2]
[348835988,1736799040414,-500.0,9.993e-05,2]
[348835989,1736799040424,-500.0,9.993e-05,2]
[348835990,1736799040434,-500.0,9.993e-05,2]
[348835991,1736799040443,-500.0,9.993e-05,2]
[348835992,1736799040453,-500.0,9.993e-05,2]
[348835993,1736799040463,-500.0,9.993e-05,2]
[348835994,1736799040472,-500.0,9.993e-05,2]
[348835995,1736799040482,-502.40412849,9.993e-05,2]
[348835996,1736799040493,-500.0,9.993e-05,2]
[348835997,1736799040502,-500.0,9.993e-05,2]
[348835998,1736799040514,-500.0,9.993e-05,2]
[348835999,1736799040524,-500.0,9.993e-05,2]
[348836000,1736799040539,-500.0,9.993e-05,2]
[348836001,1736799040550,-500.0,9.993e-05,2]
[348836002,1736799040560,-500.0,9.993e-05,2]
[348836003,1736799040571,-346.73855724,9.993e-05,2]
[348836004,1736799040899,-153.26144276,9.993e-05,2]
[348836005,1736799040909,-500.0,9.993e-05,2]
[348836006,1736799040919,-500.0,9.993e-05,2]
[348836007,1736799040928,-500.0,9.993e-05,2]
[348836008,1736799040937,-500.0,9.993e-05,2]
[348836009,1736799040946,-500.0,9.993e-05,2]
[348836010,1736799040956,-515.78753565,9.993e-05,2]
[348836011,1736799040966,-500.0,9.993e-05,2]
[348836012,1736799040976,-500.0,9.993e-05,2]
[348836013,1736799040985,-500.0,9.993e-05,2]
[348836014,1736799040994,-500.0,9.993e-05,2]
[348836015,1736799041003,-500.0,9.993e-05,2]
[348836016,1736799041013,-527.1304315,9.993e-05,2]
[348836017,1736799041023,-500.0,9.993e-05,2]
[348836018,1736799041032,-500.0,9.993e-05,2]
[348836019,1736799041041,-500.0,9.993e-05,2]
[348836020,1736799041051,-500.0,9.993e-05,2]
[348836021,1736799041060,-500.0,9.993e-05,2]
[348836022,1736799041070,-500.0,9.993e-05,2]
[348836023,1736799041080,-503.46936454,9.993e-05,2]
[348836024,1736799041089,-500.0,9.993e-05,2]
[348836025,1736799041098,-500.0,9.993e-05,2]
[348836026,1736799041108,-500.0,9.993e-05,2]
[348836027,1736799041117,-500.0,9.993e-05,2]
[348836028,1736799041126,-500.0,9.993e-05,2]
[348836029,1736799041135,-500.0,9.993e-05,2]
[348836030,1736799041144,-500.0,9.993e-05,2]
[348836031,1736799041154,-502.55264769,9.993e-05,2]
[348836032,1736799041165,-500.0,9.993e-05,2]
[348836033,1736799041174,-500.0,9.993e-05,2]
[348836034,1736799041183,-500.0,9.993e-05,2]
[348836035,1736799041192,-500.0,9.993e-05,2]
[348836036,1736799041202,-500.0,9.993e-05,2]
[348836037,1736799041211,-500.0,9.993e-05,2]
[348836038,1736799041222,-500.0,9.993e-05,2]
[348836039,1736799041231,-500.0,9.993e-05,2]
[348836040,1736799041240,-594.82,9.993e-05,2]
[348836041,1736799041249,-500.0,9.993e-05,2]
[348836042,1736799041258,-502.70389029,9.993e-05,2]
[348836043,1736799041267,-501.27635069,9.993e-05,2]
[348836044,1736799041277,-500.0,9.993e-05,2]
[348836045,1736799041286,-500.0,9.993e-05,2]
[348836046,1736799041296,-500.0,9.993e-05,2]
[348836047,1736799041305,-500.0,9.993e-05,2]
[348836048,1736799041315,-500.0,9.993e-05,2]
[348836049,1736799041325,-500.0,9.993e-05,2]
[348836050,1736799041337,-501.12908986,9.993e-05,2]
[348836051,1736799041346,-500.0,9.993e-05,2]
[348836052,1736799041355,-500.0,9.993e-05,2]
[348836053,1736799041364,-500.0,9.993e-05,2]
[348836054,1736799041375,-500.0,9.993e-05,2]
[348836055,1736799041384,-500.0,9.993e-05,2]
[348836056,1736799041394,-500.0,9.993e-05,2]
[348836057,1736799041403,-500.0,9.993e-05,2]
[348836058,1736799041415,-500.0,9.993e-05,2]
[348836059,1736799041425,-500.0,9.993e-05,2]
[348836060,1736799041434,-535.98,9.993e-05,2]
[348836061,1736799041444,-466.311299,9.993e-05,2]
[348836062,1736799041453,-500.0,9.993e-05,2]
[348836063,1736799041462,-500.0,9.993e-05,2]
[348836064,1736799041471,-500.0,9.993e-05,2]
[348836065,1736799041480,-500.0,9.993e-05,2]
[348836066,1736799041489,-518.33,9.993e-05,2]
[348836067,1736799041498,-500.0,9.993e-05,2]
[348836068,1736799041507,-500.0,9.993e-05,2]
[348836069,1736799041517,-500.0,9.993e-05,2]
[348836070,1736799041527,-500.0,9.993e-05,2]
[348836071,1736799041536,-500.0,9.993e-05,2]
[348836072,1736799041545,-500.0,9.993e-05,2]
[348836073,1736799041555,-500.0,9.993e-05,2]
[348836074,1736799041564,-500.0,9.993e-05,2]
[348836075,1736799041573,-500.0,9.993e-05,2]
[348836076,1736799041582,-2539.96,9.993e-05,2]
[348836077,1736799041591,-500.0,9.993e-05,2]
[348836078,1736799041600,-500.0,9.993e-05,2]
[348836079,1736799041610,-500.0,9.993e-05,2]
[348836080,1736799041619,-500.2156222,9.993e-05,2]
[348836081,1736799041628,-500.0,9.993e-05,2]
[348836082,1736799041637,-500.0,9.993e-05,2]
[348836083,1736799041646,-500.0,9.993e-05,2]
[348836084,1736799041656,-500.0,9.993e-05,2]
[348836085,1736799041667,-571.14,9.993e-05,2]
[348836086,1736799041675,-500.0,9.993e-05,2]
[348836087,1736799041685,-500.0,9.993e-05,2]
[348836088,1736799041694,-500.0,9.993e-05,2]
[348836089,1736799041702,-500.0,9.993e-05,2]
[348836090,1736799041712,-500.0,9.993e-05,2]
[348836091,1736799041721,-500.47018544,9.993e-05,2]
[348836092,1736799041730,-500.0,9.993e-05,2]
[348836093,1736799041739,-500.0,9.993e-05,2]
[348836094,1736799041748,-500.0,9.993e-05,2]
[348836095,1736799041757,-500.0,9.993e-05,2]
[348836096,1736799041766,-500.0,9.993e-05,2]
[348836097,1736799041775,-500.0,9.993e-05,2]
[348836098,1736799041785,-500.0,9.993e-05,2]
[348836099,1736799041794,-500.0,9.993e-05,2]
[348836100,1736799041803,-500.0,9.993e-05,2]
[348836101,1736799041812,-500.0,9.993e-05,2]
[348836102,1736799041821,-500.0,9.993e-05,2]
[348836103,1736799041830,-500.0,9.993e-05,2]
[348836104,1736799041839,-500.0,9.993e-05,2]
[348836105,1736799041848,-500.0,9.993e-05,2]
[348836106,1736799041857,-500.0,9.993e-05,2]
[348836107,1736799041866,-500.0,9.993e-05,2]
[348836108,1736799041876,-500.0,9.993e-05,2]
[348836109,1736799041885,-500.0,9.993e-05,2]
[348836110,1736799041894,-500.0,9.993e-05,2]
[348836111,1736799041903,-500.0,9.993e-05,2]